bitfinex-derivatives/quotes_SOLF0:USTF0_20241012
["timestamp","ask_amount","ask_price","bid_price","bid_amount"]
[1728747692466,8.37,146.47,146.45,0.12502]
[1728747693667,11.7841,146.47,146.45,0.12502]
[1728747695871,8.37,146.46,146.45,0.12502]
[1728747697874,8.37,146.46,146.43,3.415]
[1728747698170,8.37,146.47,146.42,9.7296]
[1728747698383,8.37,146.44,146.43,3.4151]
[1728747702077,8.37,146.44,146.42,4.7748]
[1728747702278,8.37,146.43,146.42,4.7748]
[1728747706882,3.4153,146.42,146.39,0.12502]
[1728747707179,8.37,146.41,146.39,0.12502]
[1728747707375,8.37,146.41,146.39,3.54082]
[1728747707974,3.48293022,146.44,146.39,3.54082]
[1728747708176,8.37,146.4,146.39,0.12502]
[1728747709481,11.7858,146.4,146.39,0.12502]
[1728747709870,8.37,146.4,146.39,0.12502]
[1728747711272,11.7858,146.4,146.39,0.12502]
[1728747712789,3.4158,146.4,146.39,0.12502]
[1728747712989,11.7858,146.4,146.39,0.12502]
[1728747713690,3.4157,146.41,146.39,0.12502]
[1728747713985,8.37,146.4,146.39,0.12502]
[1728747714386,11.7858,146.4,146.39,0.12502]
[1728747720791,8.37,146.4,146.33,0.12502]
[1728747720990,8.37,146.35,146.34,3.417]
[1728747721295,4.94,146.42,146.33,0.12502]
[1728747721491,8.37,146.37,146.35,3.4168]
[1728747721692,8.37,146.38,146.33,8.49502]
[1728747721895,8.37,146.38,146.34,2.6899]
[1728747722588,3.4158,146.4,146.34,2.6899]
[1728747722788,8.37,146.38,146.34,2.6899]
[1728747722991,8.37,146.38,146.36,3.4166]
[1728747723287,8.37,146.37,146.36,3.4166]
[1728747723892,8.37,146.37,146.34,2.6899]
[1728747724094,8.37,146.35,146.34,2.6899]
[1728747727290,8.37,146.35,146.33,3.54232]
[1728747727492,8.37,146.34,146.33,0.12502]
[1728747731789,11.7872,146.34,146.33,0.12502]
[1728747731989,8.37,146.34,146.33,0.12502]
[1728747733301,8.37,146.35,146.33,0.12502]
[1728747733494,8.37,146.34,146.33,0.12502]
[1728747734402,8.37,146.34,146.33,3.54242]
[1728747735303,8.37,146.34,146.33,0.12502]
[1728747737605,3.34357812,146.38,146.33,0.12502]
[1728747737807,8.37,146.34,146.33,3.54242]
[1728747738903,3.4167,146.36,146.33,3.54242]
[1728747739107,8.37,146.35,146.34,3.4172]
[1728747739612,8.37,146.36,146.34,3.4172]
[1728747739908,8.37,146.35,146.34,3.4172]
[1728747741323,3.4165,146.37,146.34,3.4172]
[1728747741615,8.37,146.35,146.34,3.4172]
[1728747744019,8.37,146.35,146.33,0.12502]
[1728747744316,8.37,146.35,146.33,3.54242]
[1728747744518,8.37,146.35,146.33,0.12502]
[1728747745518,8.37,146.35,146.34,3.4171]
[1728747749024,6.2537,146.44,146.34,8.37]
[1728747749224,8.37,146.39,146.35,2.7249]
[1728747749416,8.37,146.38,146.37,3.4164]
[1728747749718,8.37,146.39,146.35,2.7249]
[1728747750115,8.37,146.39,146.38,3.4162]
[1728747752514,8.37,146.39,146.36,3.4166]
[1728747752720,8.37,146.37,146.36,3.4166]
[1728747753418,8.37,146.38,146.36,3.4166]
[1728747754121,8.37,146.38,146.35,2.7249]
[1728747754122,8.37,146.37,146.35,2.7249]
[1728747755532,8.37,146.37,146.35,6.1417]
[1728747755921,11.7865,146.37,146.35,2.7249]
[1728747756122,8.37,146.37,146.35,2.7249]
[1728747761432,11.7865,146.37,146.35,2.7249]
[1728747762733,8.37,146.37,146.35,2.7249]
[1728747764130,8.37,146.37,146.35,6.1418]
[1728747764829,8.37,146.37,146.35,2.7249]
[1728747765132,8.37,146.36,146.33,0.12502]
[1728747765323,8.37,146.34,146.33,0.12502]
[1728747767538,11.7872,146.34,146.33,0.12502]
[1728747770132,3.417,146.35,146.33,0.12502]
[1728747770444,8.37,146.34,146.33,0.12502]
[1728747771139,11.7872,146.34,146.33,0.12502]
[1728747774845,3.418,146.31,146.28,0.12518]
[1728747775144,4.96,146.37,146.28,0.12518]
[1728747775343,8.37,146.31,146.28,0.12518]
[1728747776346,8.37,146.31,146.28,3.54378]
[1728747777248,11.7879,146.31,146.28,0.12518]
[1728747777543,8.37,146.31,146.28,0.12518]
[1728747777742,8.37,146.29,146.28,0.12518]
[1728747778345,11.7883,146.29,146.28,0.12518]
[1728747780244,8.37,146.29,146.28,0.12518]
[1728747780443,4.98,146.36,146.28,0.12518]
[1728747780643,93.30057283,146.37,146.28,0.12518]
[1728747780846,8.37,146.31,146.28,0.12518]
[1728747781754,8.37,146.3,146.28,0.12518]
[1728747782439,8.37,146.3,146.28,3.54358]
[1728747782646,8.37,146.3,146.28,0.12518]
[1728747784141,8.37,146.3,146.28,3.54368]
[1728747784351,88.32196841,146.34,146.29,8.37]
[1728747784558,96.69196841,146.34,146.29,10.9981]
[1728747785050,8.37,146.34,146.29,10.9981]
[1728747785243,9.93982694,146.39,146.3,8.37]
[1728747785244,4.95982694,146.39,146.3,8.37]
[1728747785440,8.37,146.34,146.29,10.9981]
[1728747785841,8.37,146.34,146.31,3.4177]
[1728747786051,8.37,146.34,146.29,10.9981]
[1728747786649,3.417,146.35,146.31,3.4177]
[1728747786846,8.37,146.34,146.31,3.4177]
[1728747787046,8.37,146.34,146.3,8.37]
[1728747787246,8.37,146.34,146.29,10.9981]
[1728747787440,8.37,146.33,146.29,10.9981]
[1728747787643,8.37,146.33,146.31,3.4178]
[1728747788143,8.37,146.32,146.29,2.6281]
[1728747788747,8.37,146.32,146.29,6.0462]
[1728747789251,8.37,146.31,146.29,6.0462]
[1728747789550,8.37,146.31,146.29,2.6281]
[1728747789749,8.37,146.31,146.29,1.2975]
[1728747791049,8.37,146.31,146.29,4.7158]
[1728747791254,8.37,146.31,146.29,1.2975]
[1728747791953,8.37,146.3,146.29,1.2975]
[1728747794454,8.37,146.3,146.28,3.54368]
[1728747801851,3.4173,146.34,146.29,8.37]
[1728747802050,8.37,146.33,146.29,8.37]
[1728747802354,8.37,146.32,146.29,3.4182]
[1728747802753,8.37,146.31,146.29,3.4182]
[1728747805154,8.37,146.3,146.29,3.4182]
[1728747805351,8.37,146.3,146.28,6.26808]
[1728747809466,5.0,146.3,146.17,31.53350456]
[1728747809665,8.37,146.22,146.16,2.6922]
[1728747809867,11.79,146.22,146.16,6.1135]
[1728747810066,11.79,146.22,146.16,14.4835]
[1728747810271,11.79,146.22,146.16,6.1135]
[1728747810464,11.79,146.22,146.16,2.6922]
[1728747811261,3.4206,146.2,146.15,0.12502]
[1728747811469,8.37,146.18,146.15,0.12502]
[1728747812466,8.37,146.17,146.15,0.12502]
[1728747814071,8.37,146.16,146.15,0.12502]
[1728747814579,8.37,146.17,146.15,0.12502]
[1728747814775,8.37,146.16,146.15,0.12502]
[1728747815276,11.7914,146.16,146.15,0.12502]
[1728747815979,5.0,146.21,146.15,0.12502]
[1728747816282,8.37,146.16,146.15,0.12502]
[1728747817573,3.4214,146.16,146.15,0.12502]
[1728747817768,88.40401222,146.2,146.15,0.12502]
[1728747817971,8.37,146.17,146.15,0.12502]
[1728747818973,8.36991428,146.17,146.15,0.12502]
[1728747820174,8.37,146.16,146.15,0.12502]
[1728747820782,11.7914,146.16,146.15,0.12502]
[1728747821182,88.40401222,146.2,146.15,0.12502]
[1728747821385,91.82471222,146.2,146.16,3.4213]
[1728747821578,8.37,146.18,146.16,3.4213]
[1728747821773,91.82471222,146.2,146.16,3.4213]
[1728747821977,8.37,146.19,146.17,3.4211]
[1728747822984,8.37,146.19,146.16,3.4213]
[1728747823179,8.37,146.17,146.15,0.12502]
[1728747823379,88.40401222,146.2,146.15,0.12502]
[1728747823380,8.37,146.16,146.15,0.12502]
[1728747823777,8.37,146.17,146.15,0.12502]
[1728747824786,3.421,146.18,146.15,0.12502]
[1728747824987,8.37,146.16,146.15,0.12502]
[1728747825286,3.421,146.18,146.15,0.12502]
[1728747825487,8.37,146.17,146.15,0.12502]
[1728747826486,11.7913,146.17,146.15,0.12502]
[1728747826790,3.4213,146.17,146.15,0.12502]
[1728747826978,8.37,146.16,146.15,0.12502]
[1728747828281,11.7914,146.16,146.15,0.12502]
[1728747829482,3.37724549,146.16,146.09,0.12502]
[1728747829687,8.37,146.12,146.09,0.12502]
[1728747830190,8.37,146.1,146.09,0.12502]
[1728747830392,5.34,146.18,146.09,0.12502]
[1728747830589,8.37,146.11,146.09,0.12502]
[1728747830781,8.37,146.1,146.09,0.12502]
[1728747830984,3.34747043,146.14,146.09,0.12502]
[1728747831183,8.37,146.1,146.07,3.4233]
[1728747831390,8.37,146.09,146.07,3.4233]
[1728747831581,8.37,146.09,146.04,2.7567]
[1728747831785,8.37,146.09,146.06,3.4237]
[1728747832190,8.37,146.09,146.04,11.1267]
[1728747832387,8.37,146.09,146.06,3.4237]
[1728747833689,8.37,146.09,146.04,2.7567]
[1728747833893,8.37,146.09,146.06,3.4237]
[1728747834992,11.7928,146.1,146.06,3.4237]
[1728747835194,3.4228,146.1,146.06,3.4237]
[1728747835388,8.37,146.1,146.06,3.4237]
[1728747836190,11.7928,146.1,146.06,3.4237]
[1728747836991,3.4228,146.1,146.06,3.4237]
[1728747837193,11.7928,146.1,146.06,3.4237]
[1728747839895,8.37,146.09,146.04,2.7567]
[1728747840195,8.37,146.09,146.04,11.1267]
[1728747840387,8.37,146.1,146.04,11.1267]
[1728747840595,11.7928,146.1,146.06,3.4235]
[1728747842096,8.37,146.1,146.07,3.4233]
[1728747844500,3.4227,146.11,146.08,3.4232]
[1728747844707,8.37,146.11,146.08,3.4232]
[1728747845117,0.12502,146.15,146.08,8.37]
[1728747845414,3.4222,146.13,146.08,8.37]
[1728747845598,11.7922,146.13,146.08,8.37]
[1728747845803,11.7922,146.13,146.09,3.4229]
[1728747847206,8.37,146.12,146.09,3.4229]
[1728747848507,8.37,146.11,146.09,3.4229]
[1728747848711,8.37,146.12,146.1,3.4228]
[1728747849419,11.7924,146.12,146.06,8.37]
[1728747849903,11.7924,146.12,146.08,3.423]
[1728747850102,11.7924,146.12,146.06,8.37]
[1728747850311,8.37,146.12,146.06,8.37]
[1728747850507,3.4226,146.11,146.08,3.4231]
[1728747850704,8.37,146.1,146.05,8.37]
[1728747851309,8.37,146.1,146.04,2.7567]
[1728747851511,8.37,146.1,146.04,11.1267]
[1728747851713,8.37,146.1,146.07,3.4233]
[1728747851911,8.37,146.1,146.05,8.37]
[1728747852311,11.7928,146.1,146.07,3.4233]
[1728747853410,11.7928,146.1,146.06,3.4236]
[1728747857420,3.4235,146.07,146.04,3.4242]
[1728747858018,3.4235,146.07,146.03,0.12502]
[1728747858225,3.4235,146.07,146.03,3.54932]
[1728747858418,3.4235,146.07,146.03,0.12502]
[1728747858620,3.4235,146.07,146.03,8.49502]
[1728747859512,3.4235,146.07,146.04,3.4242]
[1728747859919,1.2889,146.13,146.05,8.37]
[1728747860114,3.4231,146.09,146.06,3.4236]
[1728747862917,3.4231,146.09,146.05,11.7939]
[1728747863309,3.4228,146.1,146.05,8.37]
[1728747863511,11.7928,146.1,146.06,2.6743]
[1728747863813,3.4229,146.1,146.06,11.0443]
[1728747864422,3.423,146.09,146.06,6.0979]
[1728747864623,8.37,146.1,146.06,6.0979]
[1728747864817,11.7929,146.1,146.06,6.0979]
[1728747865919,11.7926,146.11,146.08,3.4232]
[1728747866514,3.4224,146.12,146.09,3.423]
[1728747866718,3.4224,146.12,146.06,11.0443]
[1728747866719,8.37,146.11,146.06,11.0443]
[1728747867225,11.7926,146.11,146.08,3.4231]
[1728747867426,11.7926,146.11,146.06,11.0443]
[1728747867625,8.37,146.11,146.06,11.0443]
[1728747868020,3.4229,146.1,146.07,3.4234]
[1728747869924,11.7926,146.11,146.08,3.4232]
[1728747870323,8.37,146.11,146.06,11.0443]
[1728747870519,11.7924,146.12,146.08,11.7931]
[1728747870826,11.7924,146.12,146.08,8.37]
[1728747872023,3.4226,146.11,146.08,8.37]
[1728747872818,3.4226,146.11,146.07,3.4234]
[1728747873024,11.7926,146.11,146.07,3.4234]
[1728747874216,11.7926,146.11,146.06,11.0443]
[1728747874217,3.4226,146.11,146.08,3.4232]
[1728747876626,8.37,146.12,146.06,2.6743]
[1728747876627,8.37,146.1,146.06,2.6743]
[1728747876824,0.12502,146.15,146.06,2.6743]
[1728747876825,8.37,146.09,146.06,1.3593]
[1728747877020,8.37,146.09,146.04,1.4154]
[1728747877228,3.4234,146.08,146.04,4.8396]
[1728747877530,8.37,146.05,145.92,44.65641777]
[1728747877737,11.7947,146.02,145.98,3.4254]
[1728747878230,3.4247,146.02,145.98,3.4254]
[1728747879630,3.4247,146.02,145.98,11.7954]
[1728747880626,3.43114497,146.08,145.98,8.37]
[1728747880828,8.37,146.01,145.97,0.12502]
[1728747881135,8.37,146.01,145.97,8.49502]
[1728747881432,8.37,146.01,145.97,11.92072]
[1728747882227,8.37,146.01,145.97,0.12502]
[1728747882431,11.7949,146.01,145.97,11.92062]
[1728747882630,11.7949,146.01,145.97,0.12502]
[1728747882837,11.7949,146.01,145.97,8.49502]
[1728747883025,11.7949,146.01,145.97,11.92082]
[1728747883229,0.12502,146.09,146.0,8.37]
[1728747883438,8.37,146.06,146.0,8.37]
[1728747883936,3.4244,146.04,146.0,3.4251]
[1728747884131,8.37,146.05,146.0,8.37]
[1728747884834,3.4243,146.04,146.0,8.37]
[1728747885841,8.37,146.04,145.99,3.4253]
[1728747886040,8.37,146.05,146.0,8.37]
[1728747886343,8.37,146.05,146.0,11.795]
[1728747886541,11.7942,146.05,146.0,11.795]
[1728747887342,3.4242,146.04,146.0,11.795]
[1728747887944,8.37,146.03,145.99,11.7952]
[1728747888242,8.37,146.03,145.99,3.4252]
[1728747888431,8.37,146.03,146.0,3.4251]
[1728747888634,11.7949,146.01,145.97,0.12502]
[1728747888842,3.4249,146.01,145.97,0.12502]
[1728747889039,8.37,146.0,145.97,0.12502]
[1728747889434,3.4251,146.0,145.97,0.12502]
[1728747889648,8.37,146.01,145.97,0.12502]
[1728747890138,11.795,146.01,145.97,0.12502]
[1728747891249,3.425,146.01,145.97,0.12502]
[1728747891450,11.795,146.01,145.97,0.12502]
[1728747891752,11.795,146.01,145.97,3.55082]
[1728747893148,8.37,146.0,145.97,3.55082]
[1728747894949,3.425,146.01,145.97,3.55082]
[1728747895253,11.795,146.01,145.97,3.55082]
[1728747899453,8.37,145.98,145.97,0.12502]
[1728747900454,11.7954,145.99,145.97,0.12502]
[1728747900654,3.4247,146.03,145.97,0.12502]
[1728747900857,8.37,146.04,146.0,8.37]
[1728747901249,11.7944,146.04,146.0,11.7951]
[1728747901552,11.7944,146.04,146.0,3.4251]
[1728747901961,3.4247,146.02,145.98,3.4254]
[1728747902161,3.4247,146.02,145.98,11.7954]
[1728747902463,8.37,146.03,145.98,8.37]
[1728747902769,8.37,146.02,145.97,8.49502]
[1728747903261,8.37,146.02,145.98,3.4255]
[1728747903262,11.7948,146.02,145.98,3.4255]
[1728747903964,3.4249,146.01,145.98,3.4255]
[1728747904159,3.4249,146.01,145.97,11.92072]
[1728747905758,11.7951,146.0,145.97,0.12502]
[1728747907364,11.7951,146.0,145.97,3.55082]
[1728747908064,8.37,146.01,145.98,3.4255]
[1728747908264,8.37,146.01,145.97,0.12502]
[1728747908661,8.37,146.01,145.98,3.4254]
[1728747908860,8.37,146.01,145.97,0.12502]
[1728747909176,11.7949,146.01,145.97,3.55072]
[1728747909965,8.37,146.0,145.97,3.55072]
[1728747910171,8.37,146.0,145.97,0.12502]
[1728747910763,3.4249,146.01,145.97,11.92082]
[1728747910970,11.7949,146.01,145.97,3.55082]
[1728747911269,11.7949,146.01,145.97,3.55072]
[1728747911570,8.37,146.01,145.97,0.12502]
[1728747911769,11.7949,146.01,145.98,3.4254]
[1728747912070,11.7949,146.01,145.97,0.12502]
[1728747912271,11.7949,146.01,145.97,3.55062]
[1728747912958,5.62,146.07,145.97,0.12502]
[1728747913164,3.4248,146.02,145.98,8.37]
[1728747913363,8.37,146.03,145.98,8.37]
[1728747913871,11.7946,146.03,145.99,3.4252]
[1728747914058,8.37,146.03,145.98,8.37]
[1728747914262,3.4244,146.04,146.0,3.4251]
[1728747914471,8.37,146.03,146.0,3.4251]
[1728747914965,3.4247,146.02,145.99,3.4253]
[1728747915166,3.4247,146.02,145.98,11.0701]
[1728747915167,11.7947,146.02,145.98,2.7001]
[1728747915667,11.7945,146.03,145.99,3.4253]
[1728747916868,11.7945,146.03,145.98,11.0701]
[1728747917169,11.7945,146.03,146.0,3.4251]
[1728747917371,8.37,146.03,146.0,3.4251]
[1728747917568,3.4241,146.05,146.01,8.37]
[1728747918669,3.4241,146.05,146.01,11.7948]
[1728747919075,0.12502,146.09,146.03,11.7944]
[1728747919271,8.37,146.08,146.03,11.7944]
[1728747919774,0.12502,146.09,146.04,3.4242]
[1728747919965,8.37,146.08,146.04,8.37]
[1728747920368,8.37,146.08,146.05,3.4239]
[1728747921371,8.49502,146.09,146.04,8.37]
[1728747921567,0.12502,146.09,146.06,8.37]
[1728747922073,0.12502,146.09,146.06,11.7936]
[1728747922574,0.12502,146.09,146.06,8.37]
[1728747922777,0.12502,146.09,146.06,11.7936]
[1728747923680,8.49502,146.09,146.04,8.37]
[1728747923873,8.37,146.07,146.03,8.37]
[1728747924177,8.37,146.07,146.02,8.37]
[1728747924975,8.37,146.07,146.04,3.424]
[1728747925370,8.37,146.07,146.03,8.37]
[1728747925575,8.37,146.08,146.05,3.4239]
[1728747926671,11.7936,146.07,146.03,8.37]
[1728747926869,8.37,146.07,146.03,8.37]
[1728747927176,11.7935,146.07,146.04,3.4241]
[1728747927676,8.37,146.07,146.04,3.4241]
[1728747928271,8.37,146.07,146.03,11.7943]
[1728747928472,8.37,146.07,146.03,8.37]
[1728747928875,11.7936,146.07,146.03,11.7943]
[1728747929071,11.7936,146.07,146.03,8.37]
[1728747929270,3.4233,146.08,146.04,3.424]
[1728747929583,11.7933,146.08,146.03,8.37]
[1728747930267,0.12502,146.09,146.04,8.37]
[1728747931373,0.12502,146.09,146.06,3.4237]
[1728747931580,0.12502,146.09,146.08,8.37]
[1728747931971,0.12502,146.09,146.08,11.7932]
[1728747932786,62.88460773,146.29,146.09,0.12502]
[1728747933086,8.37,146.17,146.12,8.37]
[1728747933272,3.4207,146.19,146.14,3.4217]
[1728747933598,8.37,146.18,146.14,3.4217]
[1728747933879,3.4198,146.23,146.18,3.4207]
[1728747934087,1.1662,146.26,146.17,8.37]
[1728747934088,8.37,146.22,146.17,8.37]
[1728747934471,8.37,146.2,146.15,8.37]
[1728747934984,11.7906,146.2,146.15,11.7914]
[1728747935184,11.7906,146.2,146.15,8.37]
[1728747936384,3.4206,146.2,146.16,3.4213]
[1728747936985,13.14,146.23,146.16,3.4213]
[1728747937183,3.54522,146.21,146.16,3.4213]
[1728747937689,3.54522,146.21,146.14,2.8449]
[1728747937882,0.12502,146.21,146.14,2.8449]
[1728747938382,0.12502,146.21,146.17,3.4209]
[1728747938884,3.54522,146.21,146.17,3.4209]
[1728747943786,0.12502,146.21,146.17,3.4209]
[1728747944387,0.12502,146.21,146.18,3.4209]
[1728747945991,3.4205,146.2,146.16,3.4213]
[1728747946191,3.4205,146.2,146.14,17.2899]
[1728747947288,0.12502,146.21,146.16,3.4212]
[1728747947481,3.4208,146.19,146.16,3.4212]
[1728747949194,3.4205,146.2,146.17,3.421]
[1728747953696,0.12502,146.21,146.17,3.421]
[1728747953896,3.54532,146.21,146.17,3.421]
[1728747958503,3.54532,146.21,146.17,11.831]
[1728747960905,11.8309,146.18,146.15,3.4215]
[1728747961205,8.41,146.18,146.14,12.5599]
[1728747961594,11.8311,146.18,146.14,15.9816]
[1728747962200,8.53502,146.21,146.17,8.41]
[1728747962402,8.53502,146.21,146.16,11.8312]
[1728747964398,8.53502,146.21,146.16,8.41]
[1728747964606,8.41,146.19,146.14,12.5599]
[1728747965014,8.41,146.19,146.14,15.9816]
[1728747965404,8.41,146.18,146.14,2.8449]
[1728747966011,8.41,146.18,146.14,1.4181]
[1728747967707,8.41,146.18,146.13,8.41]
[1728747967924,8.41,146.15,146.1,9.7411]
[1728747968306,8.41,146.15,146.1,13.1637]
[1728747970506,8.41,146.15,146.11,3.4225]
[1728747971320,8.41,146.15,146.11,11.8325]
[1728747971519,8.41,146.15,146.11,3.4225]
[1728747971719,8.41,146.15,146.11,11.8325]
[1728747974417,8.41,146.15,146.1,3.4228]
[1728747974622,8.41,146.14,146.09,8.53502]
[1728747975222,8.41,146.14,146.09,11.95802]
[1728747975421,8.41,146.15,146.1,8.41]
[1728747975627,8.41,146.15,146.11,3.4224]
[1728747977420,8.41,146.14,146.11,3.4224]
[1728747977621,8.41,146.14,146.1,8.41]
[1728747978517,1.2882,146.2,146.1,11.8327]
[1728747978716,8.41,146.15,146.1,11.8327]
[1728747981119,8.41,146.15,146.1,3.4227]
[1728747983034,8.41,146.13,146.1,3.4227]
[1728747984329,8.41,146.13,146.09,13.28642]
[1728747984824,8.41,146.13,146.09,4.87642]
[1728747985528,8.41,146.12,146.09,4.87642]
[1728747985731,8.41,146.12,146.09,1.45352]
[1728747985938,8.41,146.11,146.09,0.12502]
[1728747986123,8.41,146.1,146.09,0.12502]
[1728747986323,8.41,146.11,146.09,0.12502]
[1728747986524,8.41,146.12,146.09,0.12502]
[1728747986724,8.41,146.12,146.09,3.54782]
[1728747987431,8.41,146.12,146.09,0.12502]
[1728747989640,5.3,146.19,146.09,8.53502]
[1728747989824,1.25806981,146.18,146.09,8.53502]
[1728747990027,8.41,146.15,146.09,8.53502]
[1728747990331,3.34039973,146.19,146.1,8.41]
[1728747990526,8.41,146.17,146.12,8.41]
[1728747990932,8.41,146.17,146.12,11.8321]
[1728747991634,3.44173808,146.19,146.12,11.8321]
[1728747991822,8.41,146.16,146.12,11.8321]
[1728747993537,8.41,146.16,146.13,3.422]
[1728747994633,8.41,146.18,146.12,8.41]
[1728747994842,8.41,146.18,146.13,8.41]
[1728747995139,8.41,146.19,146.15,8.41]
[1728747996237,8.41,146.19,146.15,11.8314]
[1728747998833,0.12502,146.21,146.15,11.8314]
[1728747999041,8.41,146.2,146.15,11.8314]
[1728747999247,8.41,146.2,146.16,3.4213]
[1728748000346,8.53502,146.21,146.16,8.41]
[1728748000543,8.53502,146.21,146.17,3.421]
[1728748000749,0.12502,146.21,146.17,3.421]
[1728748001144,0.12502,146.21,146.17,11.831]
[1728748001647,0.12502,146.21,146.18,3.4208]
[1728748004052,8.53502,146.21,146.16,3.4212]
[1728748004256,8.53502,146.21,146.16,11.8312]
[1728748005454,8.53502,146.21,146.16,11.8314]
[1728748005850,8.53502,146.21,146.17,8.41]
[1728748006852,0.12502,146.21,146.18,8.41]
[1728748007547,0.12502,146.21,146.17,3.4211]
[1728748007743,0.12502,146.21,146.17,11.8311]
[1728748008254,8.53502,146.21,146.17,3.4211]
[1728748014955,8.53502,146.21,146.17,11.8311]
[1728748015564,0.12502,146.21,146.17,11.8311]
[1728748016861,0.12502,146.21,146.18,8.41]
[1728748017161,0.12502,146.21,146.19,8.41]
[1728748018069,0.12502,146.21,146.19,11.8307]
[1728748019263,0.12502,146.21,146.2,3.4204]
[1728748019451,0.12502,146.21,146.19,8.41]
[1728748020065,0.12502,146.21,146.19,11.8305]
[1728748020259,0.12502,146.21,146.19,8.41]
[1728748021153,0.12502,146.21,146.19,11.8306]
[1728748022464,0.12502,146.21,146.2,3.4204]
[1728748026462,0.12502,146.21,146.19,8.41]
[1728748026662,0.12502,146.21,146.19,11.8305]
[1728748028363,0.12502,146.21,146.19,8.41]
[1728748028560,0.12502,146.21,146.18,11.8308]
[1728748028864,0.12502,146.21,146.19,8.41]
[1728748030267,0.12502,146.21,146.2,11.8304]
[1728748030965,0.12502,146.21,146.2,3.4204]
[1728748035472,0.12502,146.21,146.2,11.8304]
[1728748036570,0.12502,146.27,146.22,3.4198]
[1728748036772,0.12502,146.27,146.24,8.41]
[1728748040873,8.53502,146.27,146.22,11.8299]
[1728748042179,8.41,146.26,146.17,4.196]
[1728748042478,8.41,146.22,146.17,12.606]
[1728748042771,8.41,146.23,146.18,8.41]
[1728748042978,8.41,146.23,146.18,11.8309]
[1728748043174,8.41,146.23,146.18,8.41]
[1728748043673,8.41,146.23,146.2,8.41]
[1728748044178,8.41,146.23,146.18,8.41]
[1728748044378,8.41,146.23,146.18,11.8309]
[1728748045272,8.41,146.23,146.19,8.41]
[1728748053580,0.12502,146.27,146.21,8.41]
[1728748053787,8.53502,146.27,146.22,8.41]
[1728748054278,8.53502,146.27,146.23,8.41]
[1728748054986,8.41,146.26,146.22,8.41]
[1728748055376,8.53502,146.27,146.22,8.41]
[1728748056592,0.12502,146.27,146.17,2.7664]
[1728748056790,8.41,146.18,146.15,0.12502]
[1728748059285,1.41162,146.27,146.15,0.12502]
[1728748059490,8.41,146.2,146.15,8.53502]
[1728748059991,8.41,146.22,146.17,8.41]
[1728748060883,6.49162,146.27,146.19,8.41]
[1728748061084,1.25747104,146.26,146.18,8.41]
[1728748061389,8.41,146.23,146.18,8.41]
[1728748061587,8.41,146.23,146.18,11.8309]
[1728748063995,8.41,146.22,146.18,11.8309]
[1728748064191,8.41,146.22,146.18,8.41]